lending/lending_fUSD_20241229
["ID","MTS","AMOUNT","RATE_DAILY","PERIOD"]
[347123502,1735511456339,-151.0,0.00016495,2]
[347123503,1735511456349,-151.0,0.00016495,2]
[347123504,1735511456359,-6188.53614249,0.00016495,2]
[347123505,1735511456369,-151.0,0.00016496,2]
[347123506,1735511456378,-151.0,0.00016496,2]
[347123507,1735511456388,-151.0,0.00016496,2]
[347123508,1735511456398,-169.06228288,0.00016496,2]
[347123509,1735511456408,-151.0,0.00016496,2]
[347123510,1735511456418,-3678.39,0.00016496,2]
[347123511,1735511456428,-3678.39,0.00016496,2]
[347123512,1735511456438,-3678.39,0.00016496,2]
[347123513,1735511456447,-3678.39,0.00016496,2]
[347123514,1735511456457,-3678.39,0.00016496,2]
[347123515,1735511456467,-3678.39,0.00016496,2]
[347123516,1735511456476,-3678.39,0.00016496,2]
[347123517,1735511456486,-3678.39,0.00016496,2]
[347123518,1735511456495,-3678.39,0.00016496,2]
[347123519,1735511456504,-500.0,0.00016496,2]
[347123520,1735511456514,-500.0,0.00016496,2]
[347123521,1735511456523,-500.0,0.00016496,2]
[347123522,1735511456533,-500.0,0.00016496,2]
[347123523,1735511456543,-500.0,0.00016496,2]
[347123524,1735511456552,-500.0,0.00016496,2]
[347123525,1735511456563,-500.0,0.00016496,2]
[347123526,1735511456572,-500.0,0.00016496,2]
[347123527,1735511456582,-500.0,0.00016496,2]
[347123528,1735511456591,-500.0,0.00016496,2]
[347123529,1735511456600,-272.03,0.00016496,2]
[347123530,1735511456609,-1644.32,0.00016496,2]
[347123531,1735511456619,-1575.8,0.00016496,2]
[347123532,1735511456628,-3838.42,0.00016497,2]
[347123533,1735511456637,-3678.39,0.00016497,2]
[347123534,1735511456646,-3678.39,0.00016497,2]
[347123535,1735511456661,-797.52029212,0.00016497,2]
[347123536,1735511457114,-2880.86970788,0.00016497,2]
[347123537,1735511457124,-3678.39,0.00016497,2]
[347123538,1735511457133,-3678.39,0.00016497,2]
[347123539,1735511457143,-3678.39,0.00016497,2]
[347123540,1735511457152,-3678.39,0.00016497,2]
[347123541,1735511457162,-3678.39,0.00016497,2]
[347123542,1735511457171,-3678.39,0.00016497,2]
[347123543,1735511457180,-3678.39,0.00016497,2]
[347123544,1735511457189,-279.38037301,0.00016497,2]
[347123545,1735511457217,-500.0,0.00013547,2]
[347123546,1735511457226,-338.3159,0.00013547,2]
[347123547,1735511457237,-163.4341,0.00013547,2]
[347123548,1735511457246,-388.1383994,0.00016497,2]
[347123549,1735511457258,-3010.87122759,0.00016497,2]
[347123550,1735511457267,-3678.39,0.00016497,2]
[347123551,1735511457276,-3678.62,0.00016497,2]
[347123552,1735511457286,-50577.11877241,0.00016499,2]
[347123553,1735511457298,-339471.05656421,0.00016499,2]
[347123554,1735511457448,-4195.32187045,0.00016499,2]
[347123555,1735511457461,-9328.4,0.00016499,2]
[347123556,1735511457482,-939.03,0.00016287,2]
[347123557,1735511457491,-143497.81011048,0.00016499,2]
[347123559,1735511821994,157.29,0.00010137,2]
[347123560,1735511859961,500.0,0.00016495,120]
[347123561,1735511862051,500.0,0.00016522,120]
[347123562,1735511862315,279.86,0.00016549,120]
[347123563,1735511994121,1000.0,0.00013698,30]
[347123564,1735511994462,1000.0,0.00013698,30]
[347123565,1735511994744,1000.0,0.00013698,30]
[347123566,1735511995045,1000.0,0.00013821,30]
[347123567,1735511995308,1000.0,0.00014095,30]
[347123568,1735511995580,1000.0,0.00014369,30]
[347123569,1735511995854,1000.0,0.00014643,30]
[347123570,1735511996159,1000.0,0.00014917,30]
[347123571,1735511996458,1000.0,0.00015191,30]
[347123572,1735511996732,1000.0,0.00015465,30]
[347123573,1735512435943,150.0,0.00025003,120]
[347123576,1735512622269,1000.0,0.00013698,30]
[347123577,1735512622551,1000.0,0.00013698,30]
[347123578,1735512622833,1000.0,0.0001382,30]
[347123579,1735512623098,1000.0,0.00014094,30]
[347123580,1735512623371,1000.0,0.00014368,30]
[347123581,1735512623963,1000.0,0.00014642,30]
[347123582,1735512624254,1000.0,0.00014916,30]
[347123583,1735512624538,1000.0,0.0001519,30]
[347123584,1735512624863,1000.0,0.00015464,30]
[347123589,1735512632630,-450.0,0.00012,2]
[347123590,1735512632640,-749.38,0.00012175,2]
[347123591,1735512632649,-317.28,0.00012692,2]
[347123592,1735512632659,-266.28724731,0.00012795,2]
[347123593,1735512632671,-733.71275269,0.00012795,2]
[347123594,1735512632682,-23900.0,0.00012817,2]
[347123595,1735512632693,-174.44156013,0.00012899,2]
[347123596,1735512632703,-95.00495868,0.00012945,2]
[347123597,1735512632714,-67.90504132,0.00012945,2]
[347123598,1735512632723,-247.78987404,0.00012959,2]
[347123599,1735512632734,-1699.89882596,0.00012959,2]
[347123600,1735512632744,-150.0,0.00012959,2]
[347123601,1735512632754,-500.0,0.00012999,2]
[347123602,1735512632764,-500.0,0.00012999,2]
[347123603,1735512632773,-500.0,0.00012999,2]
[347123604,1735512632783,-244.28586404,0.00012999,2]
[347123629,1735512638354,-255.71413596,0.00012999,2]
[347123631,1735512638364,-576.68,0.00012999,2]
[347123634,1735512638374,-500.0,0.00012999,2]
[347123636,1735512638383,-500.0,0.00012999,2]
[347123637,1735512638393,-500.0,0.00012999,2]
[347123638,1735512638403,-500.0,0.00012999,2]
[347123639,1735512638413,-500.0,0.00012999,2]
[347123640,1735512638423,-500.0,0.00012999,2]
[347123641,1735512638433,-500.0,0.00012999,2]
[347123642,1735512638442,-500.0,0.00012999,2]
[347123643,1735512638452,-500.0,0.00012999,2]
[347123644,1735512638462,-500.0,0.00012999,2]
[347123645,1735512638473,-500.0,0.00012999,2]
[347123646,1735512638482,-500.0,0.00012999,2]
[347123647,1735512638492,-509.57078907,0.00012999,2]
[347123648,1735512638501,-500.0,0.00012999,2]
[347123649,1735512638511,-446.37643109,0.00012999,2]
[347123650,1735512638520,-500.0,0.00012999,2]
[347123651,1735512638529,-500.0,0.00012999,2]
[347123652,1735512638538,-500.0,0.00012999,2]
[347123653,1735512638547,-497.485,0.00012999,2]
[347123654,1735512638557,-305.35362401,0.00012999,2]
[347123655,1735512638591,-254.76637599,0.00012999,2]
[347123656,1735512638601,-500.0,0.00012999,2]
[347123657,1735512638611,-500.0,0.00012999,2]
[347123658,1735512638620,-500.0,0.00012999,2]
[347123659,1735512638630,-500.0,0.00012999,2]
[347123660,1735512638639,-187.46,0.00012999,2]
[347123661,1735512638649,-518.98,0.00012999,2]
[347123662,1735512638658,-500.0,0.00012999,2]
[347123663,1735512638668,-500.0,0.00012999,2]
[347123664,1735512638680,-500.0,0.00012999,2]
[347123665,1735512638692,-500.0,0.00012999,2]
[347123666,1735512638705,-500.0,0.00012999,2]
[347123667,1735512638715,-500.0,0.00012999,2]
[347123668,1735512638725,-500.0,0.00012999,2]
[347123669,1735512638734,-500.0,0.00012999,2]
[347123670,1735512638744,-500.0,0.00012999,2]
[347123671,1735512638753,-334.11747749,0.00012999,2]
[347123672,1735512638763,-500.0,0.00012999,2]
[347123673,1735512638772,-500.0,0.00012999,2]
[347123674,1735512638781,-102.00903546,0.00012999,2]
[347123675,1735512638793,-488.56096454,0.00012999,2]
[347123676,1735512638803,-500.0,0.00012999,2]
[347123677,1735512638813,-516.04,0.00012999,2]
[347123678,1735512638822,-500.0,0.00012999,2]
[347123679,1735512638831,-500.0,0.00012999,2]
[347123680,1735512638841,-500.0,0.00012999,2]
[347123681,1735512638851,-510.15,0.00012999,2]
[347123682,1735512638860,-500.0,0.00012999,2]
[347123683,1735512638870,-637.65,0.00012999,2]
[347123684,1735512638879,-500.0,0.00012999,2]
[347123685,1735512638889,-500.0,0.00012999,2]
[347123686,1735512638898,-500.0,0.00012999,2]
[347123687,1735512638908,-500.0,0.00012999,2]
[347123688,1735512638917,-500.0,0.00012999,2]
[347123689,1735512638927,-500.0,0.00012999,2]
[347123691,1735512638936,-500.0,0.00012999,2]
[347123693,1735512638945,-500.0,0.00012999,2]
[347123695,1735512638954,-557.36,0.00012999,2]
[347123697,1735512638964,-500.0,0.00012999,2]
[347123699,1735512638973,-500.0,0.00012999,2]
[347123701,1735512638983,-500.0,0.00012999,2]
[347123703,1735512638992,-500.0,0.00012999,2]
[347123705,1735512639002,-500.0,0.00012999,2]
[347123707,1735512639012,-500.0,0.00012999,2]
[347123709,1735512639022,-500.0,0.00012999,2]
[347123711,1735512639031,-500.0,0.00012999,2]
[347123713,1735512639041,-610.97,0.00012999,2]
[347123715,1735512639051,-500.0,0.00012999,2]
[347123717,1735512639061,-462.47798738,0.00012999,2]
[347123719,1735512639070,-500.0,0.00012999,2]
[347123721,1735512639079,-500.0,0.00012999,2]
[347123723,1735512639089,-500.0,0.00012999,2]
[347123725,1735512639098,-500.0,0.00012999,2]
[347123727,1735512639107,-500.0,0.00012999,2]
[347123729,1735512639116,-500.0,0.00012999,2]
[347123731,1735512639126,-500.0,0.00012999,2]
[347123733,1735512639135,-500.0,0.00012999,2]
[347123735,1735512639144,-500.0,0.00012999,2]
[347123737,1735512639152,-500.0,0.00012999,2]
[347123739,1735512639162,-505.15156816,0.00012999,2]
[347123741,1735512639171,-598.84,0.00012999,2]
[347123743,1735512639181,-500.0,0.00012999,2]
[347123745,1735512639190,-500.0,0.00012999,2]
[347123747,1735512639200,-885.65,0.00012999,2]
[347123749,1735512639210,-500.0,0.00012999,2]
[347123751,1735512639218,-500.0,0.00012999,2]
[347123753,1735512639228,-576.7,0.00012999,2]
[347123755,1735512639237,-531.12,0.00012999,2]
[347123757,1735512639247,-925.56,0.00012999,2]
[347123759,1735512639260,-500.0,0.00012999,2]
[347123761,1735512639269,-500.0,0.00012999,2]
[347123763,1735512639278,-500.0,0.00012999,2]
[347123764,1735512639287,-500.0,0.00012999,2]
[347123766,1735512639298,-152.6435899,0.00012999,2]
[347123769,1735512639308,-500.0,0.00012999,2]
[347123771,1735512639317,-519.42,0.00012999,2]
[347123772,1735512639327,-739.11,0.00012999,2]
[347123774,1735512639336,-735.49,0.00012999,2]
[347123776,1735512639346,-191.04750104,0.00012999,2]
[347123778,1735512639355,-500.0,0.00012999,2]
[347123780,1735512639364,-798.57,0.00012999,2]
[347123783,1735512639374,-500.0,0.00012999,2]
[347123785,1735512639383,-648.48,0.00012999,2]
[347123787,1735512639393,-500.0,0.00012999,2]
[347123789,1735512639403,-528.84,0.00012999,2]
[347123791,1735512639414,-809.97,0.00012999,2]
[347123793,1735512639423,-500.0,0.00012999,2]
[347123795,1735512639433,-500.0,0.00012999,2]
[347123797,1735512639442,-500.0,0.00012999,2]
[347123798,1735512639451,-500.0,0.00012999,2]
[347123800,1735512639461,-500.0,0.00012999,2]
[347123803,1735512639471,-500.0,0.00012999,2]
[347123805,1735512639481,-500.0,0.00012999,2]
[347123807,1735512639491,-524.35,0.00012999,2]
[347123809,1735512639501,-522.01,0.00012999,2]
[347123811,1735512639511,-500.0,0.00012999,2]
[347123813,1735512639520,-500.0,0.00012999,2]
[347123815,1735512639530,-500.0,0.00012999,2]
[347123817,1735512639539,-500.0,0.00012999,2]
[347123819,1735512639548,-500.0,0.00012999,2]
[347123821,1735512639558,-500.0,0.00012999,2]
[347123823,1735512639567,-532.45,0.00012999,2]
[347123825,1735512639576,-501.34916681,0.00012999,2]
[347123827,1735512639586,-500.0,0.00012999,2]
[347123829,1735512639595,-698.92,0.00012999,2]
[347123831,1735512639605,-500.0,0.00012999,2]
[347123833,1735512639614,-500.0,0.00012999,2]
[347123835,1735512639623,-500.0,0.00012999,2]
[347123837,1735512639633,-541.06,0.00012999,2]
[347123838,1735512639642,-500.0,0.00012999,2]
[347123856,1735512639799,-500.0,0.00012999,2]
[347123858,1735512639810,-500.0,0.00012999,2]
[347123860,1735512639820,-345.29119465,0.00012999,2]
[347123862,1735512639829,-464.91486219,0.00012999,2]
[347123864,1735512639839,-500.0,0.00012999,2]
[347123866,1735512639848,-500.0,0.00012999,2]
[347123868,1735512639857,-517.75,0.00012999,2]
[347123870,1735512639867,-500.0,0.00012999,2]
[347123872,1735512639876,-904.52,0.00012999,2]
[347123874,1735512639886,-500.0,0.00012999,2]
[347123876,1735512639895,-628.11,0.00012999,2]
[347123878,1735512639904,-500.0,0.00012999,2]
[347123880,1735512639914,-500.0,0.00012999,2]
[347123882,1735512639923,-500.0,0.00012999,2]
[347123884,1735512639932,-500.0,0.00012999,2]
[347123886,1735512639942,-500.0,0.00012999,2]
[347123888,1735512639952,-500.0,0.00012999,2]
[347123890,1735512639961,-500.0,0.00012999,2]
[347123892,1735512639971,-532.12,0.00012999,2]
[347123894,1735512639980,-500.0,0.00012999,2]
[347123896,1735512639990,-500.0,0.00012999,2]
[347123898,1735512639999,-588.86,0.00012999,2]
[347123900,1735512640008,-363.61811004,0.00012999,2]
[347123902,1735512640017,-500.0,0.00012999,2]
[347123904,1735512640027,-549.66,0.00012999,2]
[347123906,1735512640036,-500.0,0.00012999,2]
[347123908,1735512640046,-500.0,0.00012999,2]
[347123910,1735512640055,-500.0,0.00012999,2]
[347123912,1735512640065,-586.0,0.00012999,2]
[347123914,1735512640074,-500.0,0.00012999,2]
[347123916,1735512640083,-625.88,0.00012999,2]
[347123918,1735512640092,-500.0,0.00012999,2]
[347123920,1735512640101,-500.0,0.00012999,2]
[347123922,1735512640111,-500.0,0.00012999,2]
[347123924,1735512640120,-1194.27,0.00012999,2]
[347123926,1735512640130,-555.77,0.00012999,2]
[347123928,1735512640139,-500.0,0.00012999,2]
[347123930,1735512640149,-569.94,0.00012999,2]
[347123932,1735512640158,-500.0,0.00012999,2]
[347123934,1735512640168,-500.0,0.00012999,2]
[347123936,1735512640177,-500.0,0.00012999,2]
[347123938,1735512640186,-500.0,0.00012999,2]
[347123940,1735512640196,-876.79,0.00012999,2]
[347123942,1735512640205,-349.67738106,0.00012999,2]
[347123944,1735512640215,-500.0,0.00012999,2]
[347123946,1735512640225,-500.0,0.00012999,2]
[347123949,1735512640234,-508.57,0.00012999,2]
[347123951,1735512640244,-500.0,0.00012999,2]
[347123953,1735512640256,-500.0,0.00012999,2]
[347123956,1735512640267,-500.0,0.00012999,2]
[347123957,1735512640276,-500.0,0.00012999,2]
[347123960,1735512640285,-517.89,0.00012999,2]
[347123962,1735512640297,-1285.64,0.00012999,2]
[347123964,1735512640307,-500.0,0.00012999,2]
[347123966,1735512640317,-500.0,0.00012999,2]
[347123968,1735512640327,-500.0,0.00012999,2]
[347123970,1735512640337,-555.82,0.00012999,2]
[347123972,1735512640347,-500.0,0.00012999,2]
[347123974,1735512640356,-701.93,0.00012999,2]
[347123976,1735512640365,-500.0,0.00012999,2]
[347123978,1735512640375,-500.0,0.00012999,2]
[347123980,1735512640385,-500.0,0.00012999,2]
[347123982,1735512640395,-500.0,0.00012999,2]
[347123984,1735512640404,-500.0,0.00012999,2]
[347123986,1735512640414,-687.63,0.00012999,2]
[347123988,1735512640423,-1144.31,0.00012999,2]
[347123990,1735512640433,-500.0,0.00012999,2]
[347123992,1735512640443,-500.0,0.00012999,2]
[347123994,1735512640452,-709.97,0.00012999,2]
[347123996,1735512640462,-500.0,0.00012999,2]
[347123998,1735512640471,-500.0,0.00012999,2]
[347124000,1735512640481,-637.95,0.00012999,2]
[347124002,1735512640490,-500.0,0.00012999,2]
[347124004,1735512640499,-764.91,0.00012999,2]
[347124006,1735512640507,-562.61,0.00012999,2]
[347124008,1735512640517,-693.6,0.00012999,2]
[347124010,1735512640526,-500.0,0.00012999,2]
[347124012,1735512640535,-500.0,0.00012999,2]
[347124014,1735512640546,-500.0,0.00012999,2]
[347124016,1735512640555,-703.11,0.00012999,2]
[347124018,1735512640566,-814.93,0.00012999,2]
[347124020,1735512640575,-500.0,0.00012999,2]
[347124022,1735512640585,-500.0,0.00012999,2]
[347124024,1735512640594,-500.0,0.00012999,2]
[347124026,1735512640604,-810.41,0.00012999,2]
[347124028,1735512640613,-500.0,0.00012999,2]
[347124030,1735512640623,-1217.7,0.00012999,2]
[347124032,1735512640632,-500.0,0.00012999,2]
[347124034,1735512640642,-649.9,0.00012999,2]
[347124036,1735512640651,-633.84,0.00012999,2]
[347124038,1735512640660,-500.0,0.00012999,2]
[347124040,1735512640669,-500.0,0.00012999,2]
[347124042,1735512640678,-500.0,0.00012999,2]
[347124044,1735512640687,-599.98,0.00012999,2]
[347124046,1735512640696,-500.0,0.00012999,2]
[347124048,1735512640705,-338.18427263,0.00012999,2]
[347124050,1735512640714,-500.0,0.00012999,2]
[347124052,1735512640724,-523.0,0.00012999,2]
[347124054,1735512640733,-557.36,0.00012999,2]
[347124056,1735512640742,-500.0,0.00012999,2]
[347124058,1735512640752,-639.65,0.00012999,2]
[347124060,1735512640761,-500.0,0.00012999,2]
[347124062,1735512640771,-502.87541995,0.00012999,2]
[347124064,1735512640780,-657.03,0.00012999,2]
[347124066,1735512640789,-500.0,0.00012999,2]
[347124068,1735512640799,-500.0,0.00012999,2]
[347124069,1735512640808,-500.0,0.00012999,2]
[347124071,1735512640818,-500.0,0.00012999,2]
[347124073,1735512640828,-500.0,0.00012999,2]
[347124075,1735512640837,-834.39,0.00012999,2]
[347124077,1735512640846,-500.0,0.00012999,2]
[347124079,1735512640856,-671.99,0.00012999,2]
[347124081,1735512640865,-500.0,0.00012999,2]
[347124084,1735512640875,-500.0,0.00012999,2]
[347124086,1735512640885,-500.0,0.00012999,2]
[347124088,1735512640895,-500.0,0.00012999,2]
[347124090,1735512640905,-500.0,0.00012999,2]
[347124092,1735512640914,-500.0,0.00012999,2]
[347124094,1735512640924,-500.0,0.00012999,2]
[347124095,1735512640933,-740.04,0.00012999,2]
[347124096,1735512640943,-1194.96,0.00012999,2]
[347124097,1735512640953,-575.89966589,0.00012999,2]
[347124098,1735512640963,-1069.09,0.00012999,2]
[347124099,1735512640973,-500.0,0.00012999,2]
[347124100,1735512640982,-500.0,0.00012999,2]
[347124101,1735512640991,-500.0,0.00012999,2]
[347124102,1735512641000,-500.0,0.00012999,2]
[347124103,1735512641010,-500.0,0.00012999,2]
[347124105,1735512641019,-568.93,0.00012999,2]
[347124107,1735512641029,-500.0,0.00012999,2]
[347124109,1735512641038,-650.86,0.00012999,2]
[347124112,1735512641049,-593.28,0.00012999,2]
[347124113,1735512641058,-774.94,0.00012999,2]
[347124115,1735512641068,-593.04,0.00012999,2]
[347124117,1735512641077,-500.0,0.00012999,2]
[347124119,1735512641087,-500.0,0.00012999,2]
[347124121,1735512641097,-530.23163139,0.00012999,2]
[347124123,1735512641107,-500.0,0.00012999,2]
[347124125,1735512641116,-500.0,0.00012999,2]
[347124127,1735512641126,-161.40310338,0.00012999,2]
[347124129,1735512641135,-500.0,0.00012999,2]
[347124131,1735512641144,-595.68,0.00012999,2]
[347124133,1735512641154,-500.0,0.00012999,2]
[347124136,1735512641163,-736.43,0.00012999,2]
[347124137,1735512641172,-500.0,0.00012999,2]
[347124139,1735512641182,-500.0,0.00012999,2]
[347124142,1735512641191,-716.25,0.00012999,2]
[347124144,1735512641201,-500.0,0.00012999,2]
[347124146,1735512641210,-500.0,0.00012999,2]
[347124147,1735512641219,-1190.68,0.00012999,2]
[347124149,1735512641228,-500.0,0.00012999,2]
[347124151,1735512641238,-3138.83,0.00012999,2]
[347124153,1735512641247,-981.31,0.00012999,2]
[347124155,1735512641259,-500.0,0.00012999,2]
[347124157,1735512641268,-500.0,0.00012999,2]
[347124159,1735512641278,-1395.02,0.00012999,2]
[347124161,1735512641287,-1950.04,0.00012999,2]
[347124163,1735512641297,-500.0,0.00012999,2]
[347124165,1735512641307,-2327.97,0.00012999,2]
[347124167,1735512641319,-1261.89,0.00012999,2]
[347124170,1735512641331,-500.0,0.00012999,2]
[347124172,1735512641343,-500.0,0.00012999,2]
[347124174,1735512641352,-500.0,0.00012999,2]
[347124176,1735512641362,-8391.93,0.00012999,2]
[347124177,1735512641371,-500.0,0.00012999,2]
[347124180,1735512641380,-500.0,0.00012999,2]
[347124182,1735512641390,-787.93,0.00012999,2]
[347124184,1735512641400,-13486.76,0.00012999,2]
[347124185,1735512641409,-500.0,0.00012999,2]
[347124187,1735512641419,-500.0,0.00012999,2]
[347124190,1735512641429,-500.0,0.00012999,2]
[347124191,1735512641439,-500.0,0.00012999,2]
[347124193,1735512641448,-4898.19,0.00012999,2]
[347124195,1735512641458,-853.89,0.00012999,2]
[347124197,1735512641467,-500.0,0.00012999,2]
[347124199,1735512641477,-541.65562731,0.00012999,2]
[347124201,1735512641486,-546.94,0.00012999,2]
[347124203,1735512641495,-500.0,0.00013033,2]
[347124205,1735512641505,-918.24,0.00013033,2]
[347124207,1735512641514,-500.0,0.00013033,2]
[347124209,1735512641523,-4892.15,0.00013033,2]
[347124211,1735512641532,-1249.36,0.00013033,2]
[347124213,1735512641542,-500.0,0.00013033,2]
[347124215,1735512641551,-845.04,0.00013033,2]
[347124217,1735512641560,-1779.32,0.00013033,2]
[347124219,1735512641569,-500.0,0.00013033,2]
[347124221,1735512641579,-500.0,0.00013033,2]
[347124223,1735512641588,-500.0,0.00013033,2]
[347124225,1735512641596,-992.81,0.00013033,2]
[347124227,1735512641606,-500.0,0.00013033,2]
[347124229,1735512641615,-500.0,0.00013033,2]
[347124231,1735512641624,-1978.74,0.00013034,2]
[347124233,1735512641633,-500.0,0.00013138,2]
[347124235,1735512641642,-500.0,0.00013138,2]
[347124237,1735512641652,-500.0,0.00013138,2]
[347124239,1735512641661,-29961.0,0.00013139,2]
[347124241,1735512641670,-500.0,0.00013271,2]
[347124243,1735512641680,-500.0,0.00013271,2]
[347124245,1735512641689,-500.0,0.00013271,2]
[347124247,1735512641698,-500.0,0.00013271,2]
[347124249,1735512641708,-500.0,0.00013271,2]
[347124251,1735512641718,-516.3,0.00013271,2]
[347124253,1735512641728,-500.0,0.00013271,2]
[347124255,1735512641737,-500.0,0.00013271,2]
[347124257,1735512641746,-500.0,0.00013271,2]
[347124259,1735512641755,-500.0,0.00013271,2]
[347124261,1735512641764,-500.0,0.00013271,2]
[347124263,1735512641773,-500.0,0.00013271,2]
[347124265,1735512641783,-500.0,0.00013271,2]
[347124267,1735512641792,-500.0,0.00013271,2]
[347124269,1735512641801,-500.0,0.00013271,2]
[347124271,1735512641811,-500.0,0.00013271,2]
[347124273,1735512641819,-500.0,0.00013271,2]
[347124274,1735512641828,-500.0,0.00013271,2]
[347124275,1735512641838,-500.0,0.00013271,2]
[347124276,1735512641847,-500.0,0.00013271,2]
[347124277,1735512641857,-500.0,0.00013271,2]
[347124278,1735512641867,-500.0,0.00013271,2]
[347124279,1735512641876,-500.0,0.00013271,2]
[347124280,1735512641886,-500.0,0.00013271,2]
[347124282,1735512641895,-536.26,0.00013271,2]
[347124283,1735512641904,-500.0,0.00013271,2]
[347124285,1735512641913,-522.88927382,0.00013271,2]
[347124287,1735512641922,-500.0,0.00013271,2]
[347124288,1735512641931,-460.31156821,0.00013271,2]
[347124289,1735512641940,-500.0,0.00013271,2]
[347124290,1735512641950,-500.0,0.00013271,2]
[347124292,1735512641959,-500.0,0.00013271,2]
[347124294,1735512641968,-199.24753259,0.00013271,2]
[347124296,1735512641977,-500.0,0.00013271,2]
[347124298,1735512641986,-500.0,0.00013271,2]
[347124300,1735512641995,-500.0,0.00013271,2]
[347124301,1735512642004,-289.67101649,0.00013271,2]
[347124303,1735512642014,-500.0,0.00013271,2]
[347124305,1735512642023,-548.87,0.00013271,2]
[347124307,1735512642033,-500.0,0.00013271,2]
[347124309,1735512642043,-500.0,0.00013271,2]
[347124311,1735512642053,-500.0,0.00013271,2]
[347124313,1735512642063,-500.0,0.00013271,2]
[347124315,1735512642072,-1300.27,0.00013271,2]
[347124316,1735512642081,-500.0,0.00013271,2]
[347124318,1735512642091,-2297.64,0.00013271,2]
[347124319,1735512642100,-500.0,0.00013271,2]
[347124320,1735512642109,-500.0,0.00013271,2]
[347124321,1735512642119,-15551.2,0.00013271,2]
[347124322,1735512642128,-500.0,0.00013271,2]
[347124323,1735512642137,-500.0,0.00013271,2]
[347124324,1735512642147,-500.0,0.00013271,2]
[347124325,1735512642286,-500.0,0.00013271,2]
[347124326,1735512642297,-500.0,0.00013271,2]
[347124327,1735512642306,-500.0,0.00013271,2]
[347124328,1735512642316,-500.0,0.00013271,2]
[347124329,1735512642326,-677.18,0.00013271,2]
[347124330,1735512642336,-500.0,0.00013271,2]
[347124331,1735512642345,-500.0,0.00013271,2]
[347124332,1735512642355,-500.0,0.00013271,2]
[347124333,1735512642364,-500.0,0.00013271,2]
[347124334,1735512642373,-500.0,0.00013271,2]
[347124335,1735512642383,-938.53,0.00013271,2]
[347124336,1735512642392,-2773.74,0.00013271,2]
[347124337,1735512642401,-500.0,0.00013271,2]
[347124338,1735512642411,-500.0,0.00013271,2]
[347124339,1735512642420,-500.0,0.00013271,2]
[347124340,1735512642429,-529.14,0.00013271,2]
[347124341,1735512642439,-500.0,0.00013271,2]
[347124342,1735512642448,-549.27,0.00013271,2]
[347124343,1735512642457,-500.0,0.00013271,2]
[347124344,1735512642466,-500.0,0.00013271,2]
[347124345,1735512642476,-500.0,0.00013271,2]
[347124346,1735512642485,-500.0,0.00013271,2]
[347124347,1735512642495,-500.0,0.00013271,2]
[347124348,1735512642504,-5366.51,0.00013271,2]